{"text_format":"1","workbook":"xlsx","n_sheets":3,"sheets":["Risikovurdering av alenearbeid","Skalarettledning","Fargekoder"],"not_rendered":{"charts":0,"images":0,"macros":0,"external_links":0,"defined_names":0,"comments":1,"pivot_tables":0},"unopened":[],"bounds":{"document_bytes":16777216,"sheet_cells":100000,"rows_first":2000,"rows_last":500,"rows_between":2000,"halvings":0,"cell_chars":16384,"cell_head_chars":4096},"cells_cut":0,"cells_raw":0,"read":"whole","date_system":"1900"}

{"sheet":"Risikovurdering av alenearbeid","index":0,"n_rows":27,"n_cols":12,"rows_kept":27,"cut":false,"hidden":false,"merged":[[0,0,0,11],[0,12,1048575,21],[1,0,29,0],[1,1,1,11],[2,1,2,11],[3,2,3,3],[3,4,5,11],[4,2,4,3],[5,2,5,3],[6,1,6,11]]}
[]
[null,"Risikovurdering av HMS-forhold - ALENEARBEID"]
[]
[null,"Avdeling: ",null,null,"AML §4-3: arbeidsgiver skal vurdere om det er særlig risiko knyttet til alenearbeid i virksomheten. Herunder tenkes både fysiske og psykiske hendelser/belastninger."]
[null,"Dato: "]
[null,"Aktivitet / prosess"]
[]
[null,"Mulig uønsket hendelse i forbindelse med alenearbeid","Mulige årsaker","Konsekvens","Eksisterande tiltak","S","K","R","Forslag om tiltak","S","K","R"]
[null,null,null,null,null,null,null,{"$f":"F9*G9","v":0},null,null,null,{"$f":"J9*K9","v":0}]
[null,null,null,null,null,null,null,{"$f":"F10*G10","v":0},null,null,null,{"$f":"J10*K10","v":0}]
[null,null,null,null,null,null,null,0,null,null,null,0]
[null,null,null,null,null,null,null,0,null,null,null,0]
[null,null,null,null,null,null,null,0,null,null,null,0]
[null,null,null,null,null,null,null,0,null,null,null,0]
[null,null,null,null,null,null,null,0,null,null,null,0]
[null,null,null,null,null,null,null,0,null,null,null,0]
[null,null,null,null,null,null,null,0,null,null,null,0]
[null,null,null,null,null,null,null,0,null,null,null,0]
[null,null,null,null,null,null,null,0,null,null,null,0]
[null,null,null,null,null,null,null,0,null,null,null,0]
[null,null,null,null,null,null,null,0,null,null,null,0]
[null,null,null,null,null,null,null,0,null,null,null,0]
[null,null,null,null,null,null,null,0,null,null,null,0]
[null,null,null,null,null,null,null,0,null,null,null,0]
[null,null,null,null,null,null,null,0,null,null,null,0]
[null,null,null,null,null,null,null,0,null,null,null,0]
[null,null,null,null,null,null,null,0,null,null,null,0]

{"sheet":"Skalarettledning","index":1,"n_rows":15,"n_cols":7,"rows_kept":15,"cut":false,"hidden":false,"merged":[[2,4,2,6],[2,0,2,2],[11,0,11,2]]}
[" "]
[]
["Sannsynlighet (S)",null,null,null,"KONSEKVENS (K)"]
[null,null,"Forklaring",null,null,null,"Personar"]
[1,"Lite sannsynlig","Ingen tilfeller i virksomheten, men kan ha hørt at det har hendt i liknende virksometer",null,1,"Ufarlig","Ubetydelig personskade. Ubetydelig helseplage. Mindre ubehag/irritasjon . Ikke fravær"]
[2,"Mindre sannsynlig","1 gang pr. 10 år eller oftere.",null,2,"Mindre farlig","Mindre personskade. Mindre helseplage, akutte helseplager. (akutt sykdom med fraver mindre enn 3 dager) Hjelp eller vurdering fra helsepersonell påkrevd. "]
[3,"Sannsynlig","Skjer årlig. Kjenner til flere enkelttilfeller av kortere varighet",null,3,"Farlig","Flere enkelttilfelle av alvorlig syke/skadde. Betydelig og alvorlig helseplage, akutte helseskader, med over 3 dagar fraver. Avvik fra regler og prosedyrer. "]
[4,"Meget sannsynlig","Skjer månedlig. Forhold som opptrer i lengre perioder",null,4,"Kritisk","Omfattende helseplage som kan medføre varig mén, lengre fraver. Rammer også nøkkelfunksjoner i virksomheten. Avvik fra regler og prosedyrer."]
[5,"Svært sannsynlig","Skjer hver uke. Forhold som er kontinuerlig tilstede i bedriften.",null,5,"Svært kritisk","Kan resultere i livstruende helseskade, uføre, eller død. Mange alvorlig syke, skadde. Alvorlig avvik fra regler og prosedyrer."]
[]
[]
["Risikohandtering "]
[" 1 - 4","Lav risiko ","Kan bli akseptert uten videre. Risikoreduserende tiltak kan vurderes opp mot kost/nytte-effekt."]
[" 5 - 9 ","Middels risiko ","Kan bli akseptert etter vurdering. Bør vurdere risikoreduserende tiltak."]
[" 10 - 25 ","Høy risiko ","Ikke akseptabelt. Alle hendelser skal vurderes opp mot risikoreduserende tiltak."]

{"sheet":"Fargekoder","index":2,"n_rows":14,"n_cols":8,"rows_kept":14,"cut":false,"hidden":false,"merged":[[4,1,8,1],[2,3,2,7],[11,3,11,4],[12,3,12,4],[13,3,13,4]]}
[]
[]
[null,null,null,"Konsekvens"]
[null,null,null,1,2,3,4,5]
[null,"Sann-synlighet",5,5,10,15,20,25]
[null,null,4,4,8,12,16,20]
[null,null,3,3,6,9,12,15]
[null,null,2,2,4,6,8,10]
[null,null,1,1,2,3,4,5]
[]
[]
[null,null," 1 - 4","Lav risiko "]
[null,null," 5 - 9 ","Middels risiko "]
[null,null," 10 - 25 ","Høy risiko "]